[Event "Amsterdam Chess Open 2024"]
[Site "Amsterdam"]
[Date "2024.11.03"]
[Round "6.18"]
[White "Schoonackers, Jeroen"]
[Black "Heus, Daan"]
[Result "1-0"]
[ECO "D31"]
[WhiteElo "1983"]
[BlackElo "1914"]
[Annotator "RC"]
[PlyCount "89"]
[EventDate "2024.10.31"]
[EventType "swiss"]
[EventCountry "NED"]
[SourceTitle "playchess.com"]
[Source "ChessBase"]
[SourceQuality "1"]
[TimeControl "5400+30"]

1. d4 {[%emt 0:00:46]} d5 {[%emt 0:00:08]} 2. c4 {[%emt 0:00:32]} e6 {[%emt 0:00:06]} 3. Nc3 {[%emt 0:00:28]} a6 {[%emt 0:00:26]} 4. cxd5 {[%emt 0:00:29]} exd5 {[%emt 0:00:06]} 5. Bf4 {[%emt 0:00:35]} Nf6 {[%emt 0:00:11]} 6. e3 {[%emt 0:00:19]} Bd6 {[%emt 0:01:01]} 7. Bg3 {[%emt 0:00:40]} Bf5 {[%emt 0:01:59]} 8. Nf3 {[%emt 0:03:03]} O-O {[%emt 0:00:53]} 9. Nh4 {[%emt 0:08:32]} Bg6 {[%emt 0:03:22]} 10. Nxg6 {[%emt 0:02:32]} hxg6 {[%emt 0:00:08]} 11. Qb3 {[%emt 0:06:21]} b6 {[%emt 0:02:08]} 12. Be2 {[%emt 0:03:03]} Nc6 {[%emt 0:06:23]} 13. Bf3 {[%emt 0:04:37]} Ne7 {[%emt 0:06:53]} 14. Be5 {[%emt 0:14:13]} c6 {[%emt 0:03:34]} 15. Bxd6 {[%emt 0:09:18]} Qxd6 {[%emt 0:00:08]} 16. Qxb6 {[%emt 0:01:59]} Rfb8 {[%emt 0:01:46]} 17. Qa5 {[%emt 0:00:11]} Rxb2 {[%emt 0:01:05]} 18. O-O {[%emt 0:00:45]} Qb4 {[%emt 0:06:03]} 19. Qxb4 {[%emt 0:00:37]} Rxb4 {[%emt 0:00:05]} 20. Rfb1 {[%emt 0:03:16]} Rab8 {[%emt 0:00:37]} 21. Rxb4 {[%emt 0:05:40]} Rxb4 {[%emt 0:00:09]} 22. Rb1 {[%emt 0:00:16]} Rxb1+ {[%emt 0:01:58]} 23. Nxb1 {[%emt 0:00:06]} Ne4 {[%emt 0:02:36]} 24. Bxe4 {[%emt 0:04:34]} dxe4 {[%emt 0:00:07]} 25. Nd2 {[%emt 0:02:05]} f5 {[%emt 0:01:15]} 26. Nb3 {[%emt 0:01:19]} Nd5 {[%emt 0:01:50]} 27. Nc5 {[%emt 0:03:33]} a5 {[%emt 0:04:32]} 28. a4 {[%emt 0:02:56]} g5 {[%emt 0:02:42]} 29. Nb7 {[%emt 0:02:23]} Nb6 {[%emt 0:01:30]} 30. Nxa5 {[%emt 0:00:13]} Nxa4 {[%emt 0:00:30]} 31. Nxc6 {[%emt 0:00:32]} Kf7 {[%emt 0:00:49]} 32. Kf1 {[%emt 0:02:23]} Nc3 {[%emt 0:01:17]} 33. Ke1 {[%emt 0:01:52]} Nd5 {[%emt 0:01:54]} 34. Kd2 {[%emt 0:00:18]} g4 {[%emt 0:01:56]} 35. Ne5+ {[%emt 0:01:52]} Ke6 {[%emt 0:02:54]} 36. Ng6 {[%emt 0:01:24]} Nf6 {[%emt 0:01:32]} 37. Nf4+ {[%emt 0:00:19]} Kd6 {[%emt 0:00:29]} 38. Ne2 {[%emt 0:00:41]} g5 {[%emt 0:02:42]} 39. Nc3 {[%emt 0:01:13]} f4 {[%emt 0:03:45]} 40. g3 {[%emt 0:03:02]} f3 {[%emt 0:03:21]} 41. Kc2 {[%emt 0:00:15]} Kc6 {[%emt 0:01:24]} 42. Kb3 {[%emt 0:00:12]} Kd6 {[%emt 0:01:22]} 43. Kc4 {[%emt 0:00:12]} Kc6 {[%emt 0:00:39]} 44. d5+ {[%emt 0:00:12]} Kc7 {[%emt 0:00:45]} 45. Kd4 {[%emt 0:00:08]} 1-0

[Event "Amsterdam Chess Open 2024"]
[Site "Amsterdam"]
[Date "2024.11.03"]
[Round "6.19"]
[White "Dolgopolov, Oleksandr"]
[Black "Ponomarev, Ivan"]
[Result "0-1"]
[ECO "B20"]
[WhiteElo "1818"]
[BlackElo "1969"]
[Annotator "RC"]
[PlyCount "42"]
[EventDate "2024.10.31"]
[EventType "swiss"]
[EventCountry "NED"]
[SourceTitle "playchess.com"]
[Source "ChessBase"]
[SourceQuality "1"]
[TimeControl "5400+30"]

1. e4 {[%emt 0:00:08]} c5 {[%emt 0:00:03]} 2. b3 {[%emt 0:00:04]} Nc6 {[%emt 0:01:13]} 3. Bb2 {[%emt 0:00:08]} d6 {[%emt 0:03:01]} 4. Bb5 {[%emt 0:00:16]} Bd7 {[%emt 0:02:21]} 5. f4 {[%emt 0:01:33]} Nf6 {[%emt 0:06:02]} 6. Nc3 {[%emt 0:01:09]} g6 {[%emt 0:07:02]} 7. Bxc6 {[%emt 0:09:43]} Bxc6 {[%emt 0:04:31]} 8. Qe2 {[%emt 0:00:09]} Bg7 {[%emt 0:01:23]} 9. O-O-O {[%emt 0:01:02]} O-O {[%emt 0:00:09]} 10. g4 {[%emt 0:03:24]} a6 {[%emt 0:16:48]} 11. h4 {[%emt 0:02:07]} h5 {[%emt 0:01:50]} 12. g5 {[%emt 0:03:53]} Ng4 {[%emt 0:03:38]} 13. Nh3 {[%emt 0:02:21]} b5 {[%emt 0:03:50]} 14. Rhg1 {[%emt 0:13:26]} b4 {[%emt 0:04:52]} 15. Nd5 {[%emt 0:00:09]} a5 {[%emt 0:06:39]} 16. Nf2 {[%emt 0:10:06]} Nxf2 {[%emt 0:01:22]} 17. Qxf2 {[%emt 0:00:09]} a4 {[%emt 0:01:39]} 18. f5 {[%emt 0:04:20]} Bxd5 {[%emt 0:12:21]} 19. exd5 {[%emt 0:03:23]} axb3 {[%emt 0:04:21]} 20. axb3 {[%emt 0:03:30]} Bxb2+ {[%emt 0:01:57]} 21. Kxb2 {[%emt 0:00:03]} Ra2+ {[%emt 0:01:12]} 0-1

[Event "Amsterdam Chess Open 2024"]
[Site "Amsterdam"]
[Date "2024.11.03"]
[Round "6.20"]
[White "Eelco Naarding"]
[Black "Schiebroek, Luc"]
[Result "1/2-1/2"]
[ECO "E12"]
[WhiteElo "1817"]
[BlackElo "1952"]
[Annotator "RC"]
[PlyCount "110"]
[EventDate "2024.10.31"]
[EventType "swiss"]
[EventCountry "NED"]
[SourceTitle "playchess.com"]
[Source "ChessBase"]
[SourceQuality "1"]
[TimeControl "5400+30"]

1. d4 {[%emt 0:00:03]} Nf6 {[%emt 0:00:07]} 2. c4 {[%emt 0:00:07]} e6 {[%emt 0:00:06]} 3. Nc3 {[%emt 0:00:08]} Bb4 {[%emt 0:00:08]} 4. Nf3 {[%emt 0:00:57]} b6 {[%emt 0:00:08]} 5. Bg5 {[%emt 0:04:34]} Bb7 {[%emt 0:02:00]} 6. e3 {[%emt 0:02:51]} O-O {[%emt 0:00:13]} 7. a3 {[%emt 0:01:21]} Bxc3+ {[%emt 0:00:07]} 8. bxc3 {[%emt 0:00:06]} d6 {[%emt 0:00:10]} 9. Bd3 {[%emt 0:05:29]} Nbd7 {[%emt 0:00:11]} 10. O-O {[%emt 0:00:14]} h6 {[%emt 0:00:10]} 11. Bh4 {[%emt 0:00:52]} e5 {[%emt 0:01:28]} 12. Nd2 {[%emt 0:01:44]} Qe7 {[%emt 0:03:07]} 13. Be4 {[%emt 0:08:44]} Bxe4 {[%emt 0:01:58]} 14. Nxe4 {[%emt 0:00:15]} Qe6 {[%emt 0:04:58]} 15. Bxf6 {[%emt 0:02:55]} Nxf6 {[%emt 0:00:14]} 16. Nxf6+ {[%emt 0:00:18]} Qxf6 {[%emt 0:01:26]} 17. Qg4 {[%emt 0:02:13]} Qe7 {[%emt 0:01:26]} 18. e4 {[%emt 0:06:45]} exd4 {[%emt 0:02:36]} 19. cxd4 {[%emt 0:00:11]} Rae8 {[%emt 0:00:08]} 20. f3 {[%emt 0:01:51]} f5 {[%emt 0:01:16]} 21. exf5 {[%emt 0:00:57]} Qe3+ {[%emt 0:04:54]} 22. Kh1 {[%emt 0:01:59]} Qd3 {[%emt 0:00:23]} 23. f6 {[%emt 0:04:24]} Rxf6 {[%emt 0:00:07]} 24. Qd7 {[%emt 0:00:04]} Re2 {[%emt 0:01:52]} 25. Qxc7 {[%emt 0:02:46]} Ra2 {[%emt 0:07:42]} 26. Qxa7 {[%emt 0:03:21]} Qxc4 {[%emt 0:14:01]} 27. Qxb6 {[%emt 0:09:29]} Rxg2 {[%emt 0:15:37]} 28. Qb8+ {[%emt 0:12:42]} Kh7 {[%emt 0:01:10]} 29. Rg1 {[%emt 0:03:43]} Rgg6 {[%emt 0:12:23]} 30. Qb1 {[%emt 0:05:06]} Qxd4 {[%emt 0:03:22]} 31. Qe4 {[%emt 0:05:37]} Qxe4 {[%emt 0:05:04]} 32. fxe4 {[%emt 0:00:05]} Re6 {[%emt 0:00:23]} 33. Rge1 {[%emt 0:01:07]} Rg4 {[%emt 0:00:30]} 34. a4 {[%emt 0:00:21]} Rexe4 {[%emt 0:00:39]} 35. Red1 {[%emt 0:01:28]} Rxa4 {[%emt 0:00:29]} 36. Rxa4 {[%emt 0:00:06]} Rxa4 {[%emt 0:00:04]} 37. Rxd6 {[%emt 0:00:11]} Ra2 {[%emt 0:00:06]} 38. Kg1 {[%emt 0:00:44]} h5 {[%emt 0:00:20]} 39. Rd5 {[%emt 0:01:11]} Kh6 {[%emt 0:00:12]} 40. Rf5 {[%emt 0:00:23]} g6 {[%emt 0:01:05]} 41. Rf2 {[%emt 0:01:02]} Rxf2 {[%emt 0:00:27]} 42. Kxf2 {[%emt 0:00:04]} Kg5 {[%emt 0:00:07]} 43. Kg3 {[%emt 0:00:20]} Kf5 {[%emt 0:01:49]} 44. Kf3 {[%emt 0:00:10]} g5 {[%emt 0:00:13]} 45. Kg3 {[%emt 0:01:03]} Ke4 {[%emt 0:01:13]} 46. Kg2 {[%emt 0:00:31]} Ke3 {[%emt 0:01:39]} 47. Kg3 {[%emt 0:00:07]} h4+ {[%emt 0:03:42]} 48. Kg4 {[%emt 0:05:34]} Kf2 {[%emt 0:00:09]} 49. Kxg5 {[%emt 0:00:03]} h3 {[%emt 0:00:09]} 50. Kf4 {[%emt 0:00:07]} Kg2 {[%emt 0:00:14]} 51. Ke3 {[%emt 0:00:05]} Kxh2 {[%emt 0:00:08]} 52. Kf2 {[%emt 0:00:03]} Kh1 {[%emt 0:00:05]} 53. Kf1 {[%emt 0:00:03]} Kh2 {[%emt 0:00:10]} 54. Kf2 {[%emt 0:00:04]} Kh1 {[%emt 0:00:04]} 55. Kf1 {[%emt 0:00:09]} h2 {[%emt 0:00:03]} 1/2-1/2

[Event "Amsterdam Chess Open 2024"]
[Site "Amsterdam"]
[Date "2024.11.03"]
[Round "6.21"]
[White "Shakya, Amrit"]
[Black "Alexandrov, Matvey"]
[Result "1/2-1/2"]
[ECO "C25"]
[WhiteElo "1756"]
[BlackElo "1835"]
[Annotator "NA RC"]
[PlyCount "49"]
[EventDate "2024.10.31"]
[EventType "swiss"]
[EventCountry "NED"]
[SourceTitle "playchess.com"]
[Source "ChessBase"]
[SourceQuality "1"]
[TimeControl "5400+30"]

1. e4 {[%emt 0:00:03]} e5 {[%emt 0:00:17]} 2. Nc3 {[%emt 0:00:13]} Nc6 {[%emt 0:01:36]} 3. Bc4 {[%emt 0:00:08]} Bc5 {[%emt 0:01:54]} 4. Qg4 {[%emt 0:00:16]} g6 {[%emt 0:06:25]} 5. Qf3 {[%emt 0:00:26]} Qf6 {[%emt 0:02:50]} 6. Nd5 {[%emt 0:00:21]} Qxf3 {[%emt 0:00:04]} 7. Nxf3 {[%emt 0:00:05]} Bb6 {[%emt 0:00:59]} 8. Ng5 {[%emt 0:07:10]} Nh6 {[%emt 0:01:46]} 9. Nf6+ {[%emt 0:01:13]} Kf8 {[%emt 0:03:19]} 10. O-O {[%emt 0:03:20]} Kg7 {[%emt 0:00:34]} 11. Nd5 {[%emt 0:00:23]} d6 {[%emt 0:00:15]} 12. d3 {[%emt 0:01:03]} Na5 {[%emt 0:08:58]} 13. Bb3 {[%emt 0:08:26]} Bd7 {[%emt 0:03:34]} 14. h3 {[%emt 0:03:11]} Nxb3 {[%emt 0:00:42]} 15. axb3 {[%emt 0:00:14]} f6 {[%emt 0:03:20]} 16. Nf3 {[%emt 0:00:41]} c6 {[%emt 0:00:13]} 17. Nxf6 {[%emt 0:09:34]} Be6 {[%emt 0:02:21]} 18. Bxh6+ {[%emt 0:01:39]} Kxh6 {[%emt 0:00:10]} 19. Ng4+ {[%emt 0:00:19]} Kg7 {[%emt 0:02:21]} 20. Kh1 {[%emt 0:03:19]} Rhf8 {[%emt 0:00:26]} 21. Ne3 {[%emt 0:01:55]} Bxh3 {[%emt 0:00:46]} 22. Nxe5 {[%emt 0:01:30]} Bxg2+ {[%emt 0:02:35]} 23. Kxg2 {[%emt 0:00:02]} dxe5 {[%emt 0:04:03]} 24. Nc4 {[%emt 0:00:47]} Bc7 {[%emt 0:01:19]} 25. Rh1 {[%emt 0:08:05]} 1/2-1/2

[Event "Amsterdam Chess Open 2024"]
[Site "Amsterdam"]
[Date "2024.11.03"]
[Round "6.22"]
[White "Alamaki, Jaakko"]
[Black "Siyar Zengin"]
[Result "0-1"]
[ECO "D94"]
[WhiteElo "1816"]
[BlackElo "1749"]
[Annotator "NA RC"]
[PlyCount "128"]
[EventDate "2024.10.31"]
[EventType "swiss"]
[EventCountry "NED"]
[SourceTitle "playchess.com"]
[Source "ChessBase"]
[SourceQuality "1"]
[TimeControl "5400+30"]

1. d4 {[%emt 0:00:04]} d5 {[%emt 0:00:08]} 2. Nf3 {[%emt 0:00:10]} Nf6 {[%emt 0:00:10]} 3. c4 {[%emt 0:00:12]} c6 {[%emt 0:00:28]} 4. Nc3 {[%emt 0:00:13]} g6 {[%emt 0:01:26]} 5. e3 {[%emt 0:05:35]} Bg7 {[%emt 0:00:25]} 6. Be2 {[%emt 0:00:20]} O-O {[%emt 0:00:11]} 7. h3 {[%emt 0:03:34]} Nbd7 {[%emt 0:00:47]} 8. b3 {[%emt 0:02:26]} b6 {[%emt 0:01:02]} 9. Bb2 {[%emt 0:02:37]} Ba6 {[%emt 0:03:18]} 10. O-O {[%emt 0:03:14]} Re8 {[%emt 0:02:19]} 11. Rc1 {[%emt 0:04:01]} e6 {[%emt 0:01:17]} 12. Qc2 {[%emt 0:04:11]} Rc8 {[%emt 0:00:59]} 13. Rfd1 {[%emt 0:04:48]} Qe7 {[%emt 0:01:06]} 14. cxd5 {[%emt 0:09:14]} Bxe2 {[%emt 0:00:25]} 15. Qxe2 {[%emt 0:00:04]} Nxd5 {[%emt 0:02:53]} 16. Nxd5 {[%emt 0:05:23]} exd5 {[%emt 0:01:33]} 17. Rc2 {[%emt 0:02:28]} Rc7 {[%emt 0:02:23]} 18. Rdc1 {[%emt 0:05:53]} Rec8 {[%emt 0:01:50]} 19. Qd2 {[%emt 0:07:25]} Bf8 {[%emt 0:02:18]} 20. Ne5 {[%emt 0:03:37]} Nxe5 {[%emt 0:01:41]} 21. dxe5 {[%emt 0:00:06]} Bg7 {[%emt 0:01:46]} 22. f4 {[%emt 0:00:38]} Bf8 {[%emt 0:01:01]} 23. Qd3 {[%emt 0:02:46]} Qe6 {[%emt 0:06:29]} 24. g4 {[%emt 0:05:37]} Bg7 {[%emt 0:05:51]} 25. f5 {[%emt 0:04:18]} Qe8 {[%emt 0:03:38]} 26. f6 {[%emt 0:02:40]} Bf8 {[%emt 0:02:22]} 27. e4 {[%emt 0:04:29]} dxe4 {[%emt 0:01:04]} 28. Qxe4 {[%emt 0:00:06]} Qe6 {[%emt 0:00:41]} 29. Rd1 {[%emt 0:03:00]} Rd7 {[%emt 0:01:03]} 30. Qf3 {[%emt 0:10:20]} Rcd8 {[%emt 0:04:36]} 31. Rxd7 {[%emt 0:01:37]} Qxd7 {[%emt 0:00:09]} 32. Kg2 {[%emt 0:03:10]} Qd5 {[%emt 0:07:40]} 33. Rf2 {[%emt 0:00:59]} Qxf3+ {[%emt 0:03:39]} 34. Kxf3 {[%emt 0:00:05]} Bc5 {[%emt 0:00:13]} 35. Rf1 {[%emt 0:01:15]} Rd3+ {[%emt 0:00:51]} 36. Ke4 {[%emt 0:00:16]} Re3+ {[%emt 0:00:56]} 37. Kf4 {[%emt 0:00:11]} Rd3 {[%emt 0:03:41]} 38. h4 {[%emt 0:01:08]} Kf8 {[%emt 0:02:09]} 39. h5 {[%emt 0:00:20]} Ke8 {[%emt 0:03:08]} 40. hxg6 {[%emt 0:00:18]} hxg6 {[%emt 0:00:06]} 41. Rh1 {[%emt 0:00:58]} Kd7 {[%emt 0:03:17]} 42. Rh8 {[%emt 0:00:38]} b5 {[%emt 0:03:48]} 43. Rh2 {[%emt 0:00:26]} Ke6 {[%emt 0:00:27]} 44. Rc2 {[%emt 0:00:17]} Rd5 {[%emt 0:08:27]} 45. b4 {[%emt 0:00:50]} Bxb4 {[%emt 0:00:18]} 46. Rxc6+ {[%emt 0:00:07]} Kd7 {[%emt 0:00:09]} 47. Ra6 {[%emt 0:00:30]} Bc5 {[%emt 0:00:45]} 48. Ke4 {[%emt 0:01:02]} Rd1 {[%emt 0:01:22]} 49. Ba3 {[%emt 0:00:45]} Rd4+ {[%emt 0:01:21]} 50. Ke3 {[%emt 0:00:28]} Ra4+ {[%emt 0:00:23]} 51. Bxc5 {[%emt 0:00:09]} Rxa6 {[%emt 0:00:06]} 52. a3 {[%emt 0:00:11]} Ra4 {[%emt 0:00:12]} 53. Kf3 {[%emt 0:00:54]} Ke6 {[%emt 0:00:13]} 54. Bd6 {[%emt 0:00:31]} a5 {[%emt 0:00:14]} 55. g5 {[%emt 0:00:34]} b4 {[%emt 0:00:16]} 56. axb4 {[%emt 0:00:09]} axb4 {[%emt 0:00:06]} 57. Ke3 {[%emt 0:00:05]} b3 {[%emt 0:00:32]} 58. Kd3 {[%emt 0:00:04]} Rg4 {[%emt 0:00:22]} 59. Kc3 {[%emt 0:00:21]} Rxg5 {[%emt 0:00:15]} 60. Kxb3 {[%emt 0:00:39]} Rf5 {[%emt 0:00:44]} 61. Kc3 {[%emt 0:00:26]} g5 {[%emt 0:00:07]} 62. Kd3 {[%emt 0:00:22]} g4 {[%emt 0:00:23]} 63. Ke4 {[%emt 0:00:47]} g3 {[%emt 0:00:11]} 64. Bc5 {[%emt 0:00:33]} g2 {[%emt 0:00:17]} 0-1

[Event "Amsterdam Chess Open 2024"]
[Site "Amsterdam"]
[Date "2024.11.03"]
[Round "6.23"]
[White "Erisen, Sinan"]
[Black "Van der Velden, Rens"]
[Result "1-0"]
[ECO "E67"]
[WhiteElo "1745"]
[BlackElo "1798"]
[Annotator "NA RC"]
[PlyCount "65"]
[EventDate "2024.10.31"]
[EventType "swiss"]
[EventCountry "NED"]
[SourceTitle "playchess.com"]
[Source "ChessBase"]
[SourceQuality "1"]
[TimeControl "5400+30"]

1. g3 {[%emt 0:00:05]} Nf6 {[%emt 0:01:05]} 2. d4 {[%emt 0:00:12]} g6 {[%emt 0:00:17]} 3. c4 {[%emt 0:00:12]} Bg7 {[%emt 0:00:16]} 4. Bg2 {[%emt 0:00:09]} d6 {[%emt 0:00:58]} 5. Nf3 {[%emt 0:00:14]} O-O {[%emt 0:01:27]} 6. Nc3 {[%emt 0:00:09]} Nbd7 {[%emt 0:02:10]} 7. h3 {[%emt 0:01:50]} e5 {[%emt 0:03:31]} 8. O-O {[%emt 0:00:31]} exd4 {[%emt 0:07:04]} 9. Nxd4 {[%emt 0:00:03]} Nb6 {[%emt 0:01:17]} 10. b3 {[%emt 0:06:25]} a6 {[%emt 0:09:33]} 11. Qd3 {[%emt 0:02:27]} c5 {[%emt 0:04:46]} 12. Nc2 {[%emt 0:01:58]} Re8 {[%emt 0:07:39]} 13. e4 {[%emt 0:07:07]} Nh5 {[%emt 0:04:56]} 14. Be3 {[%emt 0:11:42]} f5 {[%emt 0:02:22]} 15. Rad1 {[%emt 0:00:55]} fxe4 {[%emt 0:11:49]} 16. Nxe4 {[%emt 0:01:08]} Bf5 {[%emt 0:02:29]} 17. g4 {[%emt 0:00:34]} Bxe4 {[%emt 0:04:10]} 18. Bxe4 {[%emt 0:00:09]} Qh4 {[%emt 0:08:22]} 19. Bd5+ {[%emt 0:07:34]} Nxd5 {[%emt 0:03:40]} 20. Qxd5+ {[%emt 0:00:10]} Kh8 {[%emt 0:00:14]} 21. gxh5 {[%emt 0:00:12]} gxh5 {[%emt 0:00:57]} 22. Kh2 {[%emt 0:05:05]} Be5+ {[%emt 0:01:30]} 23. f4 {[%emt 0:00:17]} Rg8 {[%emt 0:09:33]} 24. Qf3 {[%emt 0:25:18]} Raf8 {[%emt 0:02:13]} 25. Rg1 {[%emt 0:01:39]} Bg7 {[%emt 0:05:43]} 26. Rd5 {[%emt 0:02:45]} Qf6 {[%emt 0:01:27]} 27. Rxh5 {[%emt 0:01:54]} Qc3 {[%emt 0:00:27]} 28. Qe4 {[%emt 0:00:36]} h6 {[%emt 0:01:25]} 29. Rg6 {[%emt 0:01:38]} Rf7 {[%emt 0:01:19]} 30. f5 {[%emt 0:02:05]} Be5+ {[%emt 0:01:36]} 31. Kh1 {[%emt 0:01:38]} Rxg6 {[%emt 0:00:33]} 32. fxg6 {[%emt 0:01:01]} Rf1+ {[%emt 0:00:56]} 33. Kg2 {[%emt 0:00:04]} 1-0

[Event "Amsterdam Chess Open 2024"]
[Site "Amsterdam"]
[Date "2024.11.03"]
[Round "6.24"]
[White "Schebek, Paul"]
[Black "Serankou, Barys"]
[Result "1-0"]
[ECO "A30"]
[WhiteElo "1696"]
[BlackElo "1773"]
[Annotator "NA RC"]
[PlyCount "59"]
[EventDate "2024.10.31"]
[EventType "swiss"]
[EventCountry "NED"]
[SourceTitle "playchess.com"]
[Source "ChessBase"]
[SourceQuality "1"]
[TimeControl "5400+30"]

1. c4 {[%emt 0:00:15]} c5 {[%emt 0:00:08]} 2. g3 {[%emt 0:00:08]} e6 {[%emt 0:00:27]} 3. d3 {[%emt 0:02:17]} d5 {[%emt 0:00:22]} 4. cxd5 {[%emt 0:02:07]} exd5 {[%emt 0:00:08]} 5. Bg2 {[%emt 0:00:10]} Nf6 {[%emt 0:00:41]} 6. Bg5 {[%emt 0:02:09]} h6 {[%emt 0:03:05]} 7. Bxf6 {[%emt 0:00:23]} gxf6 {[%emt 0:00:06]} 8. Qb3 {[%emt 0:02:59]} d4 {[%emt 0:01:40]} 9. Bxb7 {[%emt 0:05:44]} Bxb7 {[%emt 0:04:17]} 10. Qxb7 {[%emt 0:00:16]} Nd7 {[%emt 0:00:03]} 11. Qe4+ {[%emt 0:03:11]} Be7 {[%emt 0:00:12]} 12. Nd2 {[%emt 0:00:10]} Nb6 {[%emt 0:01:19]} 13. Qc6+ {[%emt 0:02:37]} Kf8 {[%emt 0:00:15]} 14. Ngf3 {[%emt 0:01:28]} Rc8 {[%emt 0:01:54]} 15. Qb5 {[%emt 0:00:57]} c4 {[%emt 0:04:15]} 16. dxc4 {[%emt 0:09:34]} d3 {[%emt 0:00:14]} 17. O-O {[%emt 0:00:33]} h5 {[%emt 0:01:28]} 18. exd3 {[%emt 0:02:28]} h4 {[%emt 0:00:46]} 19. Nxh4 {[%emt 0:02:30]} Rxh4 {[%emt 0:07:42]} 20. gxh4 {[%emt 0:00:14]} Qxd3 {[%emt 0:00:10]} 21. Qh5 {[%emt 0:02:01]} Bd6 {[%emt 0:02:27]} 22. Rae1 {[%emt 0:03:34]} Kg7 {[%emt 0:03:11]} 23. Kh1 {[%emt 0:01:53]} Be5 {[%emt 0:01:01]} 24. Nf3 {[%emt 0:04:43]} Rc5 {[%emt 0:00:14]} 25. Rg1+ {[%emt 0:02:09]} Kf8 {[%emt 0:00:08]} 26. Qh8+ {[%emt 0:00:49]} Ke7 {[%emt 0:00:10]} 27. Nxe5 {[%emt 0:00:17]} Rxe5 {[%emt 0:01:17]} 28. Rxe5+ {[%emt 0:01:20]} fxe5 {[%emt 0:00:04]} 29. Qxe5+ {[%emt 0:00:11]} Kd7 {[%emt 0:00:01]} 30. Qe3 {[%emt 0:02:59]} 1-0

[Event "Amsterdam Chess Open 2024"]
[Site "Amsterdam"]
[Date "2024.11.03"]
[Round "6.25"]
[White "Veenstra, Artyom"]
[Black "Thomas Huften"]
[Result "0-1"]
[ECO "A07"]
[WhiteElo "1640"]
[BlackElo "1781"]
[Annotator "NA RC"]
[PlyCount "100"]
[EventDate "2024.10.31"]
[EventType "swiss"]
[EventCountry "NED"]
[SourceTitle "playchess.com"]
[Source "ChessBase"]
[SourceQuality "1"]
[TimeControl "5400+30"]

1. Nf3 {[%emt 0:00:22]} Nf6 {[%emt 0:00:09]} 2. g3 {[%emt 0:00:17]} g6 {[%emt 0:00:19]} 3. Bg2 {[%emt 0:00:06]} Bg7 {[%emt 0:00:11]} 4. O-O {[%emt 0:00:11]} d5 {[%emt 0:00:35]} 5. d3 {[%emt 0:00:09]} Bg4 {[%emt 0:03:21]} 6. Nbd2 {[%emt 0:00:26]} O-O {[%emt 0:00:36]} 7. h3 {[%emt 0:02:00]} Bxf3 {[%emt 0:02:11]} 8. Bxf3 {[%emt 0:00:36]} c6 {[%emt 0:00:47]} 9. e4 {[%emt 0:00:18]} e5 {[%emt 0:02:35]} 10. h4 {[%emt 0:07:56]} h5 {[%emt 0:01:45]} 11. b3 {[%emt 0:00:09]} Nh7 {[%emt 0:02:59]} 12. Bb2 {[%emt 0:01:15]} d4 {[%emt 0:02:00]} 13. Be2 {[%emt 0:06:49]} f5 {[%emt 0:04:12]} 14. Bxh5 {[%emt 0:02:37]} gxh5 {[%emt 0:02:04]} 15. Qxh5 {[%emt 0:00:09]} Qf6 {[%emt 0:07:38]} 16. f4 {[%emt 0:07:50]} Nd7 {[%emt 0:13:38]} 17. fxe5 {[%emt 0:06:30]} Qxe5 {[%emt 0:05:58]} 18. Rf4 {[%emt 0:00:52]} fxe4 {[%emt 0:06:58]} 19. Qxe5 {[%emt 0:02:57]} Nxe5 {[%emt 0:04:45]} 20. Rxe4 {[%emt 0:02:25]} c5 {[%emt 0:02:02]} 21. Rae1 {[%emt 0:02:00]} Bh6 {[%emt 0:04:56]} 22. Rxe5 {[%emt 0:03:02]} Bxd2 {[%emt 0:01:48]} 23. R1e4 {[%emt 0:00:11]} Be3+ {[%emt 0:02:23]} 24. Kg2 {[%emt 0:01:34]} Nf6 {[%emt 0:02:00]} 25. Rxe3 {[%emt 0:00:09]} dxe3 {[%emt 0:00:18]} 26. Rxe3 {[%emt 0:00:23]} Rae8 {[%emt 0:05:50]} 27. Rxe8 {[%emt 0:01:01]} Nxe8 {[%emt 0:00:09]} 28. Bc1 {[%emt 0:00:11]} Nf6 {[%emt 0:00:41]} 29. Kf3 {[%emt 0:00:45]} Nd5+ {[%emt 0:00:49]} 30. Ke4 {[%emt 0:00:35]} Nc3+ {[%emt 0:00:33]} 31. Ke5 {[%emt 0:00:08]} Nxa2 {[%emt 0:00:25]} 32. Bf4 {[%emt 0:00:07]} Nb4 {[%emt 0:00:25]} 33. g4 {[%emt 0:02:22]} Nxc2 {[%emt 0:01:04]} 34. g5 {[%emt 0:00:41]} Nd4 {[%emt 0:03:28]} 35. g6 {[%emt 0:01:46]} Nf3+ {[%emt 0:01:39]} 36. Ke4 {[%emt 0:01:10]} Nxh4 {[%emt 0:00:45]} 37. Bd6 {[%emt 0:00:20]} Re8+ {[%emt 0:02:08]} 38. Kd5 {[%emt 0:00:24]} b6 {[%emt 0:01:55]} 39. Kc6 {[%emt 0:00:25]} Re6 {[%emt 0:03:42]} 40. Kd5 {[%emt 0:00:37]} Rxg6 {[%emt 0:00:47]} 41. Bb8 {[%emt 0:00:13]} a6 {[%emt 0:00:20]} 42. Kc4 {[%emt 0:00:17]} Nf5 {[%emt 0:00:45]} 43. Kd5 {[%emt 0:00:28]} Ne7+ {[%emt 0:01:12]} 44. Kc4 {[%emt 0:00:08]} Kf7 {[%emt 0:01:00]} 45. Be5 {[%emt 0:04:44]} Nc6 {[%emt 0:03:42]} 46. Bh8 {[%emt 0:00:00]} Ke6 {[%emt 0:00:49]} 47. Kc3 {[%emt 0:00:00]} Rg8 {[%emt 0:00:31]} 48. d4 {[%emt 0:00:00]} Rxh8 {[%emt 0:00:26]} 49. dxc5 {[%emt 0:00:00]} bxc5 {[%emt 0:00:10]} 50. Kc4 {[%emt 0:00:00]} Ra8 {[%emt 0:00:56]} 0-1

[Event "Amsterdam Chess Open 2024"]
[Site "Amsterdam"]
[Date "2024.11.03"]
[Round "6.26"]
[White "Sam Ritchie"]
[Black "Charleston Chauvet"]
[Result "1-0"]
[ECO "C42"]
[WhiteElo "1600"]
[BlackElo "1200"]
[Annotator "NA RC"]
[PlyCount "63"]
[EventDate "2024.10.31"]
[EventType "swiss"]
[EventCountry "NED"]
[SourceTitle "playchess.com"]
[Source "ChessBase"]
[SourceQuality "1"]
[TimeControl "5400+30"]

1. e4 {[%emt 0:00:03]} e5 {[%emt 0:00:05]} 2. Nf3 {[%emt 0:00:04]} Nf6 {[%emt 0:00:05]} 3. Nc3 {[%emt 0:03:32]} Bb4 {[%emt 0:00:06]} 4. Bc4 {[%emt 0:01:47]} Bxc3 {[%emt 0:04:33]} 5. dxc3 {[%emt 0:00:21]} d6 {[%emt 0:00:22]} 6. O-O {[%emt 0:02:29]} Be6 {[%emt 0:03:21]} 7. Qd3 {[%emt 0:09:08]} Bxc4 {[%emt 0:10:50]} 8. Qxc4 {[%emt 0:00:04]} Nbd7 {[%emt 0:01:33]} 9. Ng5 {[%emt 0:07:57]} O-O {[%emt 0:02:13]} 10. f4 {[%emt 0:00:27]} Rc8 {[%emt 0:08:52]} 11. Be3 {[%emt 0:05:07]} h6 {[%emt 0:03:57]} 12. Nf3 {[%emt 0:07:46]} exf4 {[%emt 0:00:07]} 13. Bxf4 {[%emt 0:00:59]} Qe7 {[%emt 0:06:03]} 14. e5 {[%emt 0:08:34]} Nxe5 {[%emt 0:17:21]} 15. Bxe5 {[%emt 0:00:41]} dxe5 {[%emt 0:00:03]} 16. Rfe1 {[%emt 0:01:33]} e4 {[%emt 0:06:59]} 17. Nd2 {[%emt 0:04:34]} Rfe8 {[%emt 0:00:01]} 18. Re2 {[%emt 0:00:55]} Qe6 {[%emt 0:08:09]} 19. Qc5 {[%emt 0:06:24]} e3 {[%emt 0:10:53]} 20. Nf1 {[%emt 0:01:00]} Qd5 {[%emt 0:05:15]} 21. Qxa7 {[%emt 0:04:45]} Ra8 {[%emt 0:00:48]} 22. Qd4 {[%emt 0:00:24]} Re4 {[%emt 0:05:44]} 23. Qd3 {[%emt 0:04:51]} Rd8 {[%emt 0:02:32]} 24. Rxe3 {[%emt 0:01:52]} Rxe3 {[%emt 0:01:38]} 25. Qxe3 {[%emt 0:01:43]} Re8 {[%emt 0:00:14]} 26. Qd3 {[%emt 0:02:17]} Qe6 {[%emt 0:01:05]} 27. b3 {[%emt 0:03:32]} Qb6+ {[%emt 0:00:16]} 28. Qd4 {[%emt 0:00:56]} Qe6 {[%emt 0:00:15]} 29. Rd1 {[%emt 0:04:27]} c6 {[%emt 0:00:33]} 30. h3 {[%emt 0:04:17]} Ra8 {[%emt 0:00:54]} 31. a4 {[%emt 0:00:26]} Ra5 {[%emt 0:00:00]} 32. Qd8+ {[%emt 0:01:47]} 1-0